[Event "Vienna Championship 2022"]
[Site "Vienna"]
[Date "2022.09.22"]
[Round "6.1"]
[White "Schwabeneder, Florian"]
[Black "Kruckenhauser, Arthur"]
[Result "0-1"]
[ECO "B50"]
[WhiteElo "2417"]
[BlackElo "2289"]
[Annotator "TA"]
[PlyCount "94"]
[EventDate "2022.09.17"]
[EventType "tourn"]
[EventCountry "AUT"]
[SourceTitle "playchess.com"]
[Source "ChessBase"]
[SourceQuality "1"]
[TimeControl "5400+30"]

{[%evp 9,94,0,5,7,2,0,8,7,12,0,9,5,14,0,0,0,0,-26,-6,-8,-9,-21,-14,-12,-18,-15,-7,-10,-3,0,0,0,0,0,16,0,0,0,0,0,8,0,17,-4,0,-71,-60,-77,-74,-83,-81,-87,-75,-96,-92,-112,-91,-151,-132,-135,-136,-138,-119,-112,0,0,0,0,0,0,0,0,0,-192,-251,-909,-889,-1397,-1341,-1981,-1954,-3013,-2024,-2391,-2450,-2148,-1379]} 1. e4 {[%emt 0:00:08]} c5 {[%emt 0:00:12]} 2. Nf3 {[%emt 0:00:37]} d6 {[%emt 0:00:04]} 3. Nc3 {[%emt 0:01:13]} Nf6 {[%emt 0:00:10]} 4. e5 {[%emt 0:00:28]} dxe5 {[%emt 0:00:12]} 5. Nxe5 {[%emt 0:00:08]} Bd7 {[%emt 0:00:43]} 6. g3 {[%emt 0:13:12] B50: Sicilian: 2...d6, Miscellaneous.} Nc6 {[%emt 0:01:01]} 7. Nxd7 {[%emt 0:00:13]} Qxd7 {[%emt 0:00:03]} 8. Bg2 {[%emt 0:00:12] The position is equal.} e6 {[%emt 0:02:36]} 9. d3 {[%emt 0:00:38]} Be7 {[%emt 0:00:50]} 10. O-O {[%emt 0:00:10]} O-O {[%emt 0:00:15] [#]} 11. Be3 $146 {[%emt 0:08:27]} ({Predecessor:} 11. Re1 Rac8 12. b3 Rfd8 13. Bb2 Nd4 14. a4 b6 15. Nb5 Ne8 16. Nc3 Nd6 17. Rb1 {0-1 (69) Wong,Y (2381)-Brkic,A (2611) Chennai 2022}) 11... Rac8 {[%emt 0:04:59]} 12. h3 {[%emt 0:10:48]} Rfd8 {[%emt 0:02:43]} 13. Re1 {[%emt 0:13:22]} b6 {[%emt 0:05:22]} 14. Ne4 {[%emt 0:02:49]} Nd4 {[%emt 0:03:22]} 15. Nxf6+ {[%emt 0:02:03]} Bxf6 {[%emt 0:02:29]} 16. Bf4 {[%emt 0:00:12]} Nc6 {[%emt 0:06:28]} 17. Rb1 {[%emt 0:06:06]} Nb4 {[%emt 0:05:04]} 18. a3 {[%emt 0:01:49]} Nd5 {[%emt 0:00:07]} 19. Bd2 {[%emt 0:01:01]} Qa4 {[%emt 0:04:46]} 20. c3 {[%emt 0:01:50]} Qa6 {[%emt 0:02:58]} 21. Bf1 {[%emt 0:00:40]} Qb7 {[%emt 0:03:41]} 22. Qf3 {[%emt 0:00:33]} Qc6 {[%emt 0:04:59]} 23. h4 {[%emt 0:01:00][%cal Bh3h4,Bh4h5][%mdl 32]} Ne7 {[%emt 0:05:59]} 24. Qe2 {[%emt 0:03:29]} Ng6 {[%emt 0:03:32]} 25. f4 {[%emt 0:02:05] Inhibits Ne5.} Qd5 {[%emt 0:03:05]} 26. Rbd1 {[%emt 0:00:27]} (26. h5 $5 {[%cal Rh5g6]} Ne7 27. Be3 $11) 26... Qb3 {[%emt 0:01:16]} 27. Bc1 {[%emt 0:00:18]} (27. h5 $11 Ne7 28. Rb1) 27... b5 {[%emt 0:00:44][%cal Bb6b5,Bb5b4][%mdl 32] Black has more active pieces.} 28. h5 {[%emt 0:12:16]} Ne7 {[%emt 0:02:02][%cal Bg6e7,Be7f5,Bf5d4,Bd4c2][%mdl 32]} 29. Bg2 {[%emt 0:07:11]} b4 $36 {[%emt 0:03:05][%mdl 2048] Black is on the roll.} 30. c4 {[%emt 0:00:21]} Nf5 {[%emt 0:02:49]} 31. Kh2 {[%emt 0:00:14]} Nd4 {[%emt 0:02:12]} 32. Qg4 {[%emt 0:06:07]} Nc2 {[%emt 0:01:52]} 33. Re5 {[%emt 0:00:57]} bxa3 {[%emt 0:08:50]} 34. bxa3 {[%emt 0:00:08]} Bxe5 {[%emt 0:01:29]} (34... Rxd3 35. Rxd3 Qxd3 36. Rxe6 $11) 35. fxe5 {[%emt 0:00:07] [#] White wants to mate with h6.} Qc3 {[%emt 0:00:03]} ({But not} 35... Nxa3 36. h6 g6 37. Qf3 $16) 36. Bf4 {[%emt 0:01:56]} f5 {[%emt 0:00:40]} (36... Nxa3 {leads to mate.} 37. h6 Qxe5 38. Bxe5 g6 39. Bb7 Nc2 40. Qg5 Kf8 41. Bxc8) ({Better is} 36... h6 $17 {Hoping for ...Qd4.} 37. Bxh6 Qxe5) 37. exf6 $1 $11 {[%emt 0:01:08]} Qxf6 {[%emt 0:01:06]} 38. Bg5 {[%emt 0:00:56]} Rd4 {[%emt 0:04:11]} 39. Be4 {[%emt 0:02:02] This bishop pair is nice.} Qf2+ {[%emt 0:03:51]} 40. Kh3 $1 {[%emt 0:00:02]} Re8 {[%emt 0:00:10] ...Ne1 is the strong threat.} 41. Rb1 {[%emt 0:00:14] [#]} (41. Bd2 $11) 41... Ne1 $1 $19 {[%emt 0:01:18] Strongly threatening ...Qf1+.} (41... Nxa3 42. Rb7 Rxe4 43. Qxe4 Qf5+ 44. Qxf5 exf5 45. Rxa7 $16) 42. Qf4 $2 {[%emt 0:03:21]} (42. Bh6 Rd7 43. Rd1) 42... Nxd3 {[%emt 0:01:39] Black is clearly winning.} 43. Bxd3 {[%emt 0:00:29]} Rxf4 {[%emt 0:00:16]} 44. Bxf4 {[%emt 0:00:20]} Qf3 {[%emt 0:00:35][%csl LRd3,LRh5] White must now prevent ...e5.} 45. Rb3 {[%emt 0:00:19]} Qxh5+ {[%emt 0:00:17]} 46. Kg2 {[%emt 0:00:02]} Qd1 {[%emt 0:00:41]} 47. Rc3 {[%emt 0:00:16]} Rd8 {[%emt 0:00:24] Weighted Error Value: White=0.79/Black=0.19 (very precise)} 0-1

[Event "Vienna Championship 2022"]
[Site "Vienna"]
[Date "2022.09.22"]
[Round "6.2"]
[White "Halvax, Georg"]
[Black "Leisch, Lukas"]
[Result "1-0"]
[ECO "D24"]
[WhiteElo "2423"]
[BlackElo "2409"]
[Annotator "TA"]
[PlyCount "99"]
[EventDate "2022.09.17"]
[EventType "tourn"]
[EventCountry "AUT"]
[SourceTitle "playchess.com"]
[Source "ChessBase"]
[SourceQuality "1"]
[TimeControl "5400+30"]

{[%evp 9,99,11,54,48,45,40,38,35,48,45,44,43,45,18,28,8,38,31,62,56,81,79,75,84,72,77,212,199,248,245,240,243,247,224,300,231,242,230,245,233,325,323,323,318,328,309,318,226,228,228,226,228,225,226,227,226,222,222,228,213,228,228,228,228,228,221,274,279,427,419,429,421,419,419,456,456,613,611,618,618,618,611,29975,29976,29976,29977,29977,29978,29978,29979,29976,29967]} 1. d4 {[%emt 0:00:06]} Nf6 {[%emt 0:00:04]} 2. c4 {[%emt 0:00:26]} e6 {[%emt 0:00:04]} 3. Nf3 {[%emt 0:00:10]} d5 {[%emt 0:00:12]} 4. Nc3 {[%emt 0:00:11]} dxc4 {[%emt 0:00:05]} 5. e4 {[%emt 0:00:10][%cal Be2e4,Be4e5][%mdl 32]} b5 {[%emt 0:00:04]} (5... Bb4 $5 {[%cal Rf6e4]}) 6. e5 {[%emt 0:00:09] D24: Queen's Gambit Accepted: 3 Nf3 Nf6 4 Nc3.} Nd5 {[%emt 0:00:05]} 7. Nxb5 {[%emt 0:00:09]} Nb6 {[%emt 0:00:06]} 8. Be2 {[%emt 0:00:27] White is slightly better.} Nc6 {[%emt 0:00:05]} 9. O-O {[%emt 0:00:15]} Be7 {[%emt 0:00:07]} 10. Be3 {[%emt 0:00:15] 10.Qd2 is the modern continuation.} O-O {[%emt 0:00:19]} 11. Qb1 {[%emt 0:00:10]} Rb8 {[%emt 0:20:17]} 12. Nc3 {[%emt 0:01:56]} Bb7 {[%emt 0:06:19] [#]} 13. Rc1 $146 {[%emt 0:01:20]} ({Predecessor:} 13. Qe4 Nb4 14. Qg4 Kh8 15. Rac1 Qd7 16. Rfd1 N4d5 17. Bd2 Nxc3 18. Bxc3 Bd5 19. Nd2 {1-0 (42) Volkov,S (2534)-Makarian,R (2474) Cheliabinsk 2021}) 13... f5 {[%emt 0:07:38]} 14. exf6 $1 {[%emt 0:02:49]} Rxf6 {[%emt 0:00:44]} 15. Ne4 {[%emt 0:11:53]} Rg6 {[%emt 0:01:03]} 16. b3 {[%emt 0:04:24]} ({But not} 16. Bxc4 $6 Nxc4 17. Rxc4 Qd5 $11) 16... cxb3 {[%emt 0:04:38]} 17. axb3 {[%emt 0:01:06]} Qd5 {[%emt 0:06:48] [#] Loses the game.} (17... Nd5 $16) 18. Ng3 $1 $18 {[%emt 0:03:20]} Rg4 {[%emt 0:21:21]} (18... Rf6 $142 19. Ng5 g6) 19. h3 {[%emt 0:05:55]} Rxg3 {[%emt 0:03:11]} 20. fxg3 {[%emt 0:00:16]} Bf6 {[%emt 0:00:28]} 21. Rd1 {[%emt 0:06:18]} Na5 {[%emt 0:07:15]} 22. Qc2 {[%emt 0:07:38][%cal Oa1a5] aiming for Rxa5!} Qxb3 {[%emt 0:07:43]} 23. Qxb3 {[%emt 0:00:24] Chess con chili.} Nxb3 {[%emt 0:00:02] Pair of Knights!} 24. Rxa7 {[%emt 0:01:09]} Nd5 {[%emt 0:00:30]} 25. Rb1 {[%emt 0:01:07]} Bc6 {[%emt 0:02:26]} 26. Bc4 {[%emt 0:10:03]} Nxe3 {[%emt 0:00:50]} 27. Bxe6+ {[%emt 0:00:08]} ({Resist} 27. Bxb3 $6 Kf8 $18) ({Much less strong is} 27. Rxb3 Rxb3 28. Bxe6+ Kf8 29. Bxb3 Bxf3 $18) 27... Kf8 {[%emt 0:00:06]} 28. Rxb3 {[%emt 0:04:17]} Rxb3 {[%emt 0:00:07]} 29. Bxb3 {[%emt 0:00:11][%cal Be6b3,Bb3a4,Ba4c6,Bc6e4][%mdl 32] Hoping for Ne5.} Bxf3 {[%emt 0:00:08]} 30. gxf3 {[%emt 0:01:02]} Bxd4 {[%emt 0:00:05][%mdl 4096] Endgame KRB-KBN} 31. Rb7 {[%emt 0:00:50]} Ke8 {[%emt 0:01:18]} 32. Ba4+ {[%emt 0:00:23]} Kd8 {[%emt 0:00:40]} 33. Bc6 {[%emt 0:00:40]} Bb6 {[%emt 0:03:13]} 34. Rb8+ {[%emt 0:00:16]} Ke7 {[%emt 0:00:01]} 35. f4 {[%emt 0:02:03]} h6 {[%emt 0:00:46]} 36. Kf2 {[%emt 0:00:38][%cal Ob8b6] Strongly threatening Rxb6!} Nf5+ {[%emt 0:00:17]} 37. Kg2 {[%emt 0:00:10]} Kd6 {[%emt 0:02:40]} 38. Be4 {[%emt 0:00:53]} Ne7 {[%emt 0:00:05]} (38... Ne3+ {was called for.} 39. Kf3 Nc4) 39. Kf3 {[%emt 0:00:42]} Kd7 {[%emt 0:00:21]} 40. g4 {[%emt 0:00:58]} Bd4 {[%emt 0:00:16]} 41. h4 {[%emt 0:01:21][%cal Bh3h4,Bh4h5][%mdl 32]} c5 {[%emt 0:00:36]} 42. g5 {[%emt 0:00:51]} hxg5 {[%emt 0:00:25]} 43. fxg5 {[%emt 0:00:26][%cal Bf4g5,Bg5h6,Bh6h7][%mdl 32]} Ke6 {[%emt 0:00:59]} 44. h5 {[%emt 0:01:39] Prevents g6.} Nf5 {[%emt 0:00:46] Inhibits h6.} 45. Rb6+ {[%emt 0:04:16]} Ke5 {[%emt 0:00:38]} 46. Bxf5 {[%emt 0:00:13] White mates.} Kxf5 {[%emt 0:00:06]} 47. h6 {[%emt 0:00:07]} gxh6 {[%emt 0:02:24]} 48. gxh6 {[%emt 0:00:07]} c4 {[%emt 0:00:12] [#]} 49. h7 $1 {[%emt 0:01:26]} c3 {[%emt 0:00:06] [#]} 50. Ke2 $1 {[%emt 0:00:05] Weighted Error Value: White=0.09 (flawless) /Black=0.38} 1-0

[Event "Vienna Championship 2022"]
[Site "Vienna"]
[Date "2022.09.22"]
[Round "6.3"]
[White "Baumegger, Siegfried"]
[Black "Peyrer, Konstantin"]
[Result "1-0"]
[ECO "A36"]
[WhiteElo "2447"]
[BlackElo "2402"]
[Annotator "TA"]
[PlyCount "99"]
[EventDate "2022.09.17"]
[EventType "tourn"]
[EventCountry "AUT"]
[SourceTitle "playchess.com"]
[Source "ChessBase"]
[SourceQuality "1"]
[TimeControl "5400+30"]

{[%evp 13,98,7,0,-12,-7,0,-18,-10,0,0,0,0,7,0,2,3,28,33,33,33,32,11,32,33,54,-35,0,-11,39,30,37,32,45,-4,5,5,60,27,43,47,54,55,22,57,37,38,91,68,122,14,14,15,16,13,131,106,207,126,297,46,230,253,253,242,321,312,304,302,300,272,976,967,777,729,4822,812,2110,1030,29985,29986,29987,29988,29993,29990,29995,29976,29999]} 1. c4 {[%emt 0:00:07]} Nf6 {[%emt 0:00:36]} 2. Nc3 {[%emt 0:00:40]} g6 {[%emt 0:00:49]} 3. g3 {[%emt 0:02:20]} Bg7 {[%emt 0:00:14]} 4. Bg2 {[%emt 0:00:05]} c5 {[%emt 0:00:13]} 5. e4 {[%emt 0:00:55]} Nc6 {[%emt 0:00:11]} 6. Nge2 {[%emt 0:00:10]} d6 {[%emt 0:02:11]} 7. d3 {[%emt 0:00:31]} a6 {[%emt 0:01:27]} 8. Rb1 {[%emt 0:03:58]} Rb8 {[%emt 0:10:08]} 9. a4 {[%emt 0:00:23]} (9. O-O {feels hotter.} b5 10. Nd5 Bg4 11. b3) 9... Bd7 {[%emt 0:01:11]} 10. O-O {[%emt 0:05:08][%cal Be1g1,Bg1h2,Bh2g2][%mdl 32] The position is equal.} Qc8 {[%emt 0:05:34]} 11. f3 {[%emt 0:03:26]} h5 {[%emt 0:06:31]} 12. h4 {[%emt 0:01:54]} Bh3 {[%emt 0:01:08]} 13. Kh2 {[%emt 0:05:37]} Bxg2 {[%emt 0:00:13]} 14. Kxg2 {[%emt 0:00:05]} Nd4 {[%emt 0:11:27]} 15. Nxd4 {[%emt 0:03:24]} cxd4 {[%emt 0:00:36]} 16. Ne2 {[%emt 0:01:22]} Nd7 {[%emt 0:00:47]} 17. b4 {[%emt 0:01:50]} O-O {[%emt 0:01:38]} 18. a5 {[%emt 0:02:30]} e5 {[%emt 0:02:08]} 19. b5 {[%emt 0:03:12]} (19. Ng1 $14) 19... Qc7 {[%emt 0:07:27]} 20. Bd2 {[%emt 0:17:01]} f5 {[%emt 0:01:36]} (20... axb5 $11 21. Rxb5 Qc6) 21. Ng1 {[%emt 0:00:47]} Nc5 {[%emt 0:06:02]} 22. Bb4 {[%emt 0:01:31]} f4 {[%emt 0:00:27]} 23. g4 {[%emt 0:07:44]} (23. gxf4 $14 Rxf4 24. Bxc5 dxc5 25. Nh3) 23... hxg4 {[%emt 0:06:33]} 24. fxg4 {[%emt 0:00:23]} Qd7 {[%emt 0:00:40]} (24... Ra8 $11) 25. Bxc5 $14 {[%emt 0:00:15]} dxc5 {[%emt 0:00:07]} 26. Qf3 {[%emt 0:18:13]} b6 {[%emt 0:04:10]} 27. axb6 {[%emt 0:02:23]} Rxb6 {[%emt 0:00:09][%cal Ra6b5]} 28. bxa6 {[%emt 0:00:15]} Rxa6 {[%emt 0:00:09]} 29. Nh3 {[%emt 0:05:50]} Bf6 {[%emt 0:03:35]} (29... Kf7 $14) 30. g5 $16 {[%emt 0:00:49]} Be7 {[%emt 0:00:05] [#]} (30... Bd8 $14) 31. Rb2 {[%emt 0:02:44]} (31. Nf2 $1 $16) 31... Kg7 $1 $11 {[%emt 0:11:20]} 32. Nf2 {[%emt 0:00:06] next Qg4 is good for White.} Rh8 {[%emt 0:01:02]} 33. Rh1 {[%emt 0:00:10] And now Qg4 would win.} Ra3 {[%emt 0:00:34] [#]} (33... Ra7 $11 {remains equal.}) 34. Qh3 $1 $16 {[%emt 0:03:09]} Qc6 {[%emt 0:03:02]} (34... Qxh3+ $16 {might work better.} 35. Rxh3 Kf7) 35. Qg4 {[%emt 0:00:33] Threatens to win with Rhb1.} Rf8 $2 {[%emt 0:01:45]} (35... Ra4 $16 {was called for.}) 36. Qf3 $2 {[%emt 0:01:01]} ({White should play} 36. Rhb1 $18 Ra6 37. Rb7) 36... Rfa8 $2 {[%emt 0:04:08]} (36... Rh8 $14) 37. Rhb1 $18 {[%emt 0:00:32]} R3a6 {[%emt 0:02:12]} 38. Qg4 {[%emt 0:00:48]} Kf7 {[%emt 0:02:03]} 39. Kf3 {[%emt 0:00:19]} Qe6 {[%emt 0:00:50]} 40. Rb7 {[%emt 0:01:13]} R8a7 {[%emt 0:01:05]} 41. h5 {[%emt 0:03:36] Dancing on a razor blade.} gxh5 {[%emt 0:03:10]} (41... Qxg4+ 42. Nxg4 gxh5 43. Nxe5+ Ke6) 42. Qf5+ {[%emt 0:00:14]} Qxf5 {[%emt 0:00:33]} 43. exf5 {[%emt 0:00:04][%cal Be4f5,Bf5f6,Bf6f7][%mdl 32]} Rxb7 {[%emt 0:00:22]} 44. Rxb7 {[%emt 0:00:06][%mdl 4096] Endgame Black must now prevent Ne4. KRB-KRN} Ke8 {[%emt 0:00:18]} 45. Ne4 {[%emt 0:02:17]} (45. g6 $142 Kf8 46. Ne4) 45... Ra3 {[%emt 0:00:09]} 46. f6 {[%emt 0:00:15] White mates.} Rxd3+ {[%emt 0:00:07]} 47. Kf2 {[%emt 0:00:06]} Bd8 {[%emt 0:01:14]} 48. g6 {[%emt 0:00:32][%cal Bg5g6,Bg6g7][%mdl 32]} Rg3 {[%emt 0:01:16]} 49. g7 {[%emt 0:00:29][%csl Gb7][%cal Rf6f7]} d3 {[%emt 0:00:06]} 50. f7# {[%emt 0:00:44] Weighted Error Value: White=0.21 (precise) /Black=0.43} 1-0

[Event "Vienna Championship 2022"]
[Site "Vienna"]
[Date "2022.09.22"]
[Round "6.4"]
[White "Vitouch, Anatol"]
[Black "Stanec, Nikolaus"]
[Result "1/2-1/2"]
[ECO "A46"]
[WhiteElo "2252"]
[BlackElo "2458"]
[Annotator "TA"]
[PlyCount "130"]
[EventDate "2022.09.17"]
[EventType "tourn"]
[EventCountry "AUT"]
[SourceTitle "playchess.com"]
[Source "ChessBase"]
[SourceQuality "1"]
[TimeControl "5400+30"]

{[%evp 9,130,-32,-31,-33,-23,-20,0,0,0,-6,0,0,2,-5,25,20,27,26,62,37,36,24,25,21,43,47,74,73,70,76,82,70,97,93,170,163,151,79,79,73,95,40,39,39,41,40,66,32,41,0,0,0,0,0,0,0,0,-16,0,-870,1064,1086,1016,0,0,0,0,0,0,-30,-30,-33,-31,-31,-22,-221,-193,-193,-193,-227,-212,-204,-152,-152,-152,-193,-179,-249,-249,-251,-251,-371,-311,-343,-281,-338,-281,-315,-254,-433,-377,-377,-377,-377,-377,-377,-377,-383,-42,-32,-49,-85,0,0,0,0,0,0,0,0,0,0,0]} 1. d4 {[%emt 0:00:04]} c6 {[%emt 0:00:20]} 2. Nf3 {[%emt 0:01:50]} Nf6 {[%emt 0:00:37][%cal Bg8f6,Bf6h5,Bh5g3][%mdl 32]} 3. Bf4 {[%emt 0:04:42]} Nh5 {[%emt 0:00:25]} 4. Bg5 {[%emt 0:01:00]} h6 {[%emt 0:00:14]} 5. Bh4 {[%emt 0:01:05]} g5 {[%emt 0:01:21]} 6. Bg3 {[%emt 0:00:06] A46: 1 d4 Nf6 2 Nf3 e6: Torre, London and Colle Systems.} Nxg3 {[%emt 0:01:29]} 7. hxg3 {[%emt 0:00:07]} Bg7 {[%emt 0:00:03]} 8. c3 {[%emt 0:03:29] [#]} d5 $146 {[%emt 0:01:18]} ({Predecessor:} 8... Qb6 9. Qc2 d6 10. Nbd2 Bd7 11. Nc4 Qc7 12. Nxg5 c5 13. d5 Bb5 14. Na3 Ba6 {1-0 (61) Kovacevic,S (2337)-Jordan Martinez,M (2172) Mislata 2013}) 9. e3 {[%emt 0:03:08]} Nd7 {[%emt 0:02:04]} 10. Nbd2 {[%emt 0:03:06]} e6 {[%emt 0:06:01]} 11. e4 {[%emt 0:04:40]} Qe7 {[%emt 0:03:25]} 12. Bd3 {[%emt 0:05:38]} b6 {[%emt 0:04:34]} 13. Qe2 {[%emt 0:02:49]} a6 {[%emt 0:02:15]} 14. e5 {[%emt 0:06:14]} c5 {[%emt 0:01:50]} 15. a3 {[%emt 0:02:10]} c4 {[%emt 0:03:11]} 16. Bc2 {[%emt 0:00:37]} b5 {[%emt 0:00:09]} 17. g4 {[%emt 0:05:50]} Bb7 {[%emt 0:02:22]} 18. Nf1 {[%emt 0:03:04]} O-O-O {[%emt 0:01:34]} 19. Ng3 {[%emt 0:01:32]} Kb8 {[%emt 0:07:01]} 20. Nh5 {[%emt 0:00:10]} f6 {[%emt 0:02:27]} 21. exf6 {[%emt 0:02:24] White is more active.} Bxf6 {[%emt 0:00:17]} (21... Nxf6 $16 22. Nxg7 Qxg7) 22. O-O $18 {[%emt 0:01:19]} Rhe8 {[%emt 0:06:50]} 23. Nxf6 {[%emt 0:06:43]} (23. Rfe1 $142) 23... Qxf6 $16 {[%emt 0:00:10]} 24. Rfe1 {[%emt 0:00:53]} Qf4 {[%emt 0:03:26]} 25. Ne5 {[%emt 0:03:39]} (25. a4 $16) 25... Nxe5 $14 {[%emt 0:00:33]} 26. Qxe5+ {[%emt 0:00:07]} Qxe5 {[%emt 0:00:05]} 27. Rxe5 {[%emt 0:00:10]} Kc7 {[%emt 0:01:22]} 28. Rae1 {[%emt 0:00:21]} Bc8 $1 {[%emt 0:02:40]} 29. Bf5 {[%emt 0:11:25][%cal Rf5e6]} Kd6 $1 {[%emt 0:00:22]} 30. R1e3 {[%emt 0:00:56]} Bd7 {[%emt 0:01:58]} 31. Bg6 {[%emt 0:02:07]} Rf8 {[%emt 0:00:24]} 32. Rh3 {[%emt 0:03:50]} Rh8 {[%emt 0:00:25]} 33. Rf3 {[%emt 0:00:31]} Rdf8 {[%emt 0:00:37]} 34. Rff5 $2 {[%emt 0:21:44][%mdl 8192]} Rf7 $4 {[%mdl 8192]} 35. Rxf7 $18 {[%emt 0:00:00]} Rg8 {[%emt 0:46:11]} 36. Rf8 $2 Rxf8 $11 {[%emt 0:00:00][%mdl 4096] Endgame KRB-KRB} 37. f3 {[%emt 0:00:00]} a5 {[%emt 0:00:00][%cal Ob5b4]} 38. Kf2 {[%emt 0:00:00]} b4 {[%emt 0:00:00] aiming for ...bxa3.} 39. axb4 {[%emt 0:00:00]} axb4 {[%emt 0:00:00]} 40. Re2 {[%emt 0:00:00]} Ra8 {[%emt 0:00:00]} 41. cxb4 {[%emt 0:00:00]} Rb8 {[%emt 0:00:00]} 42. g3 $2 {[%emt 0:00:00]} (42. Ke1 $1 $11 {and White is okay.}) 42... Rxb4 $19 {[%emt 0:00:00]} 43. f4 {[%emt 0:00:00]} Ke7 $1 {[%emt 0:00:00]} 44. Rd2 {[%emt 0:00:45]} Kf6 {[%emt 0:00:00]} 45. Bh5 {[%emt 0:00:10]} Ra4 {[%emt 0:00:00]} 46. Kg2 {[%emt 0:00:43]} Ra1 {[%emt 0:00:00]} 47. Kf2 {[%emt 0:00:20] Inhibits Re1.} Ba4 {[%emt 0:00:00]} 48. Kg2 {[%emt 0:00:29]} (48. f5 {was necessary.}) 48... Rc1 {[%emt 0:00:00]} 49. Kf2 {[%emt 0:00:17]} Bc2 {[%emt 0:00:00]} 50. Be8 {[%emt 0:00:35]} (50. f5 $142) 50... Be4 {[%emt 0:00:00]} 51. Bb5 {[%emt 0:01:12]} Ra1 {[%emt 0:08:00]} 52. Be8 {[%emt 0:00:45]} Bd3 {[%emt 0:00:00]} 53. Bd7 {[%emt 0:01:04]} Ke7 {[%emt 0:00:00]} 54. Bc8 {[%emt 0:02:00]} (54. Bc6 {was the only chance.}) 54... Be4 {[%emt 0:00:00]} 55. f5 {[%emt 0:00:32]} exf5 {[%emt 0:00:00]} 56. Bxf5 {[%emt 0:01:20]} Bxf5 {[%emt 0:00:00]} 57. gxf5 {[%emt 0:00:05] [#] KR-KR} h5 $1 {[%emt 0:00:00]} 58. Re2+ {[%emt 0:00:35]} Kf6 $2 {[%emt 0:00:00]} (58... Kf7 $19 59. Re5 Ra5) 59. Re5 $1 $15 {[%emt 0:00:05]} Ra5 {[%emt 0:00:00] Strongly threatening ...Rb5.} 60. g4 $1 {[%emt 0:00:21] [#]} hxg4 {[%emt 0:00:00]} (60... h4 $1 $17 {And now ...Kf7 would win.} 61. Re6+ Kf7) 61. Kg3 $11 {[%emt 0:00:07] The position is equal.} Ra1 {[%emt 0:00:00]} 62. Rxd5 {[%emt 0:00:41]} Rg1+ {[%emt 0:00:00]} 63. Kf2 {[%emt 0:00:15]} Rb1 {[%emt 0:00:00]} 64. Rc5 {[%emt 0:00:51]} Rxb2+ {[%emt 0:00:00]} 65. Kg3 {[%emt 0:00:05]} Rc2 {[%emt 0:00:00] A wild game.  Weighted Error Value: White=0.42/Black=0.17 (very precise)} 1/2-1/2

[Event "Vienna Championship 2022"]
[Site "Vienna"]
[Date "2022.09.22"]
[Round "6.5"]
[White "Steindl, Johannes"]
[Black "Atzl, Florian"]
[Result "1-0"]
[ECO "A57"]
[WhiteElo "2327"]
[BlackElo "2155"]
[Annotator "TA"]
[PlyCount "75"]
[EventDate "2022.09.17"]
[EventType "tourn"]
[EventCountry "AUT"]
[SourceTitle "playchess.com"]
[Source "ChessBase"]
[SourceQuality "1"]
[TimeControl "5400+30"]

{[%evp 11,75,34,46,26,109,112,122,120,187,197,211,214,203,230,197,223,233,205,222,207,242,234,228,128,143,120,126,0,93,88,149,112,161,153,203,149,206,208,211,203,228,225,243,247,236,262,270,262,268,266,253,258,308,232,210,203,576,552,1062,1075,1035,1041,29991,29992,29992,29993]} 1. d4 {[%emt 0:00:03][%cal Bd2d4,Bd4d5][%mdl 32]} Nf6 {[%emt 0:01:33]} 2. c4 {[%emt 0:00:03]} c5 {[%emt 0:00:43]} 3. d5 {[%emt 0:00:04]} b5 {[%emt 0:00:04]} 4. cxb5 {[%emt 0:00:03]} a6 {[%emt 0:00:05]} 5. e3 {[%emt 0:00:02]} g6 {[%emt 0:00:51]} 6. Nc3 {[%emt 0:00:04]} Bg7 {[%emt 0:00:08]} 7. e4 {[%emt 0:00:03][%cal Be3e4,Be4e5][%mdl 32] A57: Benko/Volga Gambit.} axb5 {[%emt 0:04:01]} (7... O-O $11) 8. e5 $16 {[%emt 0:04:19]} ({Reject} 8. Bxb5 Nxe4 9. Qb3 Nxc3 10. bxc3 Ba6 11. Bxa6 Qa5 $17) 8... Ng8 {[%emt 0:00:08] [#]} 9. Nf3 $146 {[%emt 0:01:51] White is better.} ({Don't take} 9. Bxb5 Bxe5 10. Nf3 Bg7 $14) ({Predecessor:} 9. Bxb5 Bxe5 10. Nf3 Bg7 11. O-O Bb7 12. Re1 Ba6 13. Ba4 Nf6 14. Be3 Qb6 15. d6 {½-½ (42) Helbig,A (2064)-Ster,P (1902) DESC email 2001}) 9... Qa5 {[%emt 0:15:19]} (9... b4 $16 {was worth a try.}) 10. Bxb5 $18 {[%emt 0:03:51]} Nh6 {[%emt 0:05:05]} 11. O-O {[%emt 0:01:24]} O-O {[%emt 0:00:37]} 12. Bg5 {[%emt 0:05:11]} f6 {[%emt 0:04:40]} 13. exf6 {[%emt 0:06:31]} exf6 {[%emt 0:00:05]} 14. Bf4 {[%emt 0:00:04]} Nf7 {[%emt 0:00:56]} 15. Nd2 {[%emt 0:01:20]} d6 {[%emt 0:08:38]} 16. Nc4 {[%emt 0:03:51]} Qc7 {[%emt 0:00:05]} 17. h4 {[%emt 0:01:14]} (17. Ne4 $18) 17... Nd7 $16 {[%emt 0:03:45]} 18. Bc6 {[%emt 0:00:20] White is much more active.} Ba6 {[%emt 0:01:43]} 19. Bb5 {[%emt 0:06:37]} (19. Bxa8 $16 {[%cal Od1a4] Qa4! is the strong threat.} Bxc4 20. Bc6) 19... Nde5 {[%emt 0:01:11]} (19... Bc8 $1 $11 {keeps the balance.}) 20. Bxe5 {[%emt 0:00:34] Black is on the road to losing.} fxe5 {[%emt 0:02:28]} (20... Nxe5 $142 21. Nxe5 fxe5) 21. a4 {[%emt 0:08:30]} Bb7 {[%emt 0:02:02]} (21... Bc8 $16) 22. Ne4 {[%emt 0:01:29]} Rfd8 {[%emt 0:02:10]} (22... Bc8 $16 23. a5 Bf5) 23. Ra3 {[%emt 0:04:36]} Qe7 {[%emt 0:01:07]} (23... Nh6 $16) 24. g3 $18 {[%emt 0:04:29]} Ra7 {[%emt 0:01:32]} 25. Nb6 {[%emt 0:04:32] Pair of Knights!} Qc7 {[%emt 0:06:59]} 26. a5 {[%emt 0:01:19]} Bc8 {[%emt 0:00:17]} 27. Nxc8 {[%emt 0:00:42]} Rxc8 {[%emt 0:00:05]} 28. a6 {[%emt 0:02:27]} Rb8 {[%emt 0:00:05]} 29. Qa4 {[%emt 0:01:21]} Nh6 {[%emt 0:00:45][%cal Bf7h6,Bh6f5,Bf5d4,Bd4b3][%mdl 32]} 30. Bc4 {[%emt 0:02:06]} Nf5 {[%emt 0:01:26]} 31. Qc6 {[%emt 0:02:07]} Qe7 {[%emt 0:03:06]} 32. Rb3 {[%emt 0:06:20]} Rxb3 {[%emt 0:05:49]} 33. Bxb3 {[%emt 0:00:04] aiming for Qb6.} Rc7 $2 {[%emt 0:00:40]} (33... Nd4 {is a better chance.} 34. Qc8+ Qf8 35. Qxf8+ Kxf8) 34. Ra1 {[%emt 0:00:38]} Nd4 {[%emt 0:01:26] [#]} 35. Qxc7 {[%emt 0:01:59][%mdl 512]} Qxc7 {[%emt 0:00:06]} 36. a7 {[%emt 0:00:03]} Nxb3 {[%emt 0:00:35]} 37. a8=Q+ {[%emt 0:00:07]} Bf8 {[%emt 0:00:04]} 38. Ra7 {[%emt 0:00:11] Weighted Error Value: White=0.17 (very precise) /Black=0.56} 1-0